[Event "Early-Titled-Tuesday-Blitz-March-26-2024"]
[Site "Chess.com"]
[Date "2024.03.26"]
[Round "1"]
[White "Nf3c5"]
[Black "platy3"]
[Result "1-0"]
[WhiteElo "2541"]
[BlackElo "2959"]
[TimeControl "180+1"]
[EndTime "8:07:18 PDT"]
[Termination "Nf3c5 won by resignation"]

1. e4 {[%clk 0:03:00.9]} 1... c5 {[%clk 0:02:56.3]} 2. Nf3 {[%clk 0:02:58.4]}
2... e6 {[%clk 0:02:54.7]} 3. d3 {[%clk 0:02:57.1]} 3... Nc6 {[%clk 0:02:54.7]}
4. g3 {[%clk 0:02:56.5]} 4... g6 {[%clk 0:02:51.8]} 5. Bg5 {[%clk 0:02:55.4]}
5... f6 {[%clk 0:02:50.7]} 6. Be3 {[%clk 0:02:49.1]} 6... Bg7 {[%clk 0:02:49.4]}
7. Bg2 {[%clk 0:02:18.6]} 7... Nge7 {[%clk 0:02:47.9]} 8. O-O {[%clk 0:02:18.2]}
8... b6 {[%clk 0:02:28.4]} 9. Nc3 {[%clk 0:01:58.8]} 9... d5 {[%clk 0:02:16.5]}
10. exd5 {[%clk 0:01:57.3]} 10... exd5 {[%clk 0:02:15.2]} 11. d4 {[%clk
0:01:56.9]} 11... c4 {[%clk 0:02:15.4]} 12. Re1 {[%clk 0:01:53.1]} 12... O-O
{[%clk 0:02:12.6]} 13. b3 {[%clk 0:01:53.4]} 13... cxb3 {[%clk 0:02:09.8]} 14.
axb3 {[%clk 0:01:52.1]} 14... Be6 {[%clk 0:02:10.5]} 15. h4 {[%clk 0:01:48.8]}
15... Qd7 {[%clk 0:02:08.8]} 16. Qd2 {[%clk 0:01:48.1]} 16... Nf5 {[%clk
0:02:06]} 17. Bf4 {[%clk 0:01:44.7]} 17... Rfe8 {[%clk 0:01:56.3]} 18. Nb5
{[%clk 0:01:33.5]} 18... Bf7 {[%clk 0:01:42.2]} 19. Bh3 {[%clk 0:01:25]} 19...
Bf8 {[%clk 0:01:31.4]} 20. Kh2 {[%clk 0:01:18]} 20... Rxe1 {[%clk 0:01:27.8]}
21. Rxe1 {[%clk 0:01:13.4]} 21... a6 {[%clk 0:01:26.7]} 22. Nc3 {[%clk
0:01:11.6]} 22... Rc8 {[%clk 0:01:22.2]} 23. Na4 {[%clk 0:01:07.4]} 23... Qd8
{[%clk 0:01:00.3]} 24. Bxf5 {[%clk 0:01:02.7]} 24... gxf5 {[%clk 0:01:01.2]} 25.
Qd3 {[%clk 0:00:59.7]} 25... Nb4 {[%clk 0:00:57.5]} 26. Qxf5 {[%clk 0:00:56.7]}
26... Nxc2 {[%clk 0:00:57.4]} 27. Re2 {[%clk 0:00:50.6]} 27... b5 {[%clk
0:00:47.7]} 28. Nc5 {[%clk 0:00:45.6]} 28... Nxd4 {[%clk 0:00:36.8]} 29. Nxd4
{[%clk 0:00:29.5]} 29... Rxc5 {[%clk 0:00:34.9]} 30. Ne6 {[%clk 0:00:29.2]}
30... Bxe6 {[%clk 0:00:29.4]} 31. Rxe6 {[%clk 0:00:26.3]} 31... d4 {[%clk
0:00:25.9]} 32. Qe4 {[%clk 0:00:21]} 32... Qd5 {[%clk 0:00:23.7]} 33. Qe1 {[%clk
0:00:19.6]} 33... d3 {[%clk 0:00:19]} 34. Re8 {[%clk 0:00:19.7]} 34... Kf7
{[%clk 0:00:18.2]} 35. Rb8 {[%clk 0:00:14.2]} 35... Rc2 {[%clk 0:00:17.7]} 36.
Qe8+ {[%clk 0:00:13.1]} 36... Kg7 {[%clk 0:00:18.4]} 37. Qxf8+ {[%clk
0:00:13.4]} 37... Kg6 {[%clk 0:00:19.1]} 38. Qh6+ {[%clk 0:00:13.3]} 38... Kf5
{[%clk 0:00:15.4]} 39. Qh5+ {[%clk 0:00:12.9]} 39... Ke4 {[%clk 0:00:15.2]} 40.
Re8+ {[%clk 0:00:11.5]} 40... Kd4 {[%clk 0:00:15.8]} 41. Be3+ {[%clk 0:00:11]}
1-0

[Event "Early-Titled-Tuesday-Blitz-March-26-2024"]
[Site "Chess.com"]
[Date "2024.03.26"]
[Round "1"]
[White "lacafi"]
[Black "tetrix83"]
[Result "1-0"]
[WhiteElo "2319"]
[BlackElo "2622"]
[TimeControl "180+1"]
[EndTime "8:07:20 PDT"]
[Termination "lacafi won on time"]

1. d4 {[%clk 0:03:00.9]} 1... Nf6 {[%clk 0:02:33.3]} 2. Nf3 {[%clk 0:02:58.9]}
2... g6 {[%clk 0:02:31.3]} 3. c4 {[%clk 0:02:58.7]} 3... Bg7 {[%clk 0:02:30.4]}
4. Nc3 {[%clk 0:02:59.4]} 4... d6 {[%clk 0:02:30.2]} 5. e4 {[%clk 0:02:59.3]}
5... O-O {[%clk 0:02:30.3]} 6. Be2 {[%clk 0:03:00]} 6... e5 {[%clk 0:02:30.4]}
7. dxe5 {[%clk 0:03:00.9]} 7... dxe5 {[%clk 0:02:30.1]} 8. O-O {[%clk
0:03:01.8]} 8... Nbd7 {[%clk 0:02:29.3]} 9. Qc2 {[%clk 0:03:01.4]} 9... c6
{[%clk 0:02:29.4]} 10. Rd1 {[%clk 0:03:01.5]} 10... Qe7 {[%clk 0:02:29.2]} 11.
Rb1 {[%clk 0:03:01.8]} 11... a5 {[%clk 0:02:28]} 12. a3 {[%clk 0:03:01.9]} 12...
Nh5 {[%clk 0:02:12.6]} 13. b4 {[%clk 0:02:54.2]} 13... axb4 {[%clk 0:02:12.7]}
14. axb4 {[%clk 0:02:54.4]} 14... Nf4 {[%clk 0:02:10.9]} 15. Bf1 {[%clk
0:02:54.6]} 15... Nf6 {[%clk 0:02:08.3]} 16. Be3 {[%clk 0:02:51.4]} 16... Bg4
{[%clk 0:02:07.3]} 17. Bc5 {[%clk 0:02:49.2]} 17... Qe6 {[%clk 0:02:03.1]} 18.
Ng5 {[%clk 0:02:39.1]} 18... Qc8 {[%clk 0:01:57.1]} 19. f3 {[%clk 0:02:38.6]}
19... Bd7 {[%clk 0:01:56.6]} 20. g3 {[%clk 0:02:19]} 20... N4h5 {[%clk
0:01:53.8]} 21. Bxf8 {[%clk 0:01:39]} 21... Bxf8 {[%clk 0:01:53.2]} 22. g4
{[%clk 0:00:57.2]} 22... Nf4 {[%clk 0:01:52.4]} 23. Nh3 {[%clk 0:00:54.9]} 23...
Ne6 {[%clk 0:01:49.4]} 24. c5 {[%clk 0:00:48.6]} 24... Nd4 {[%clk 0:01:47.4]}
25. Qf2 {[%clk 0:00:48.2]} 25... Ra3 {[%clk 0:01:45]} 26. Rd3 {[%clk 0:00:43]}
26... h5 {[%clk 0:01:28.9]} 27. Qh4 {[%clk 0:00:33.6]} 27... hxg4 {[%clk
0:01:09.8]} 28. Qxf6 {[%clk 0:00:33.2]} 28... gxh3 {[%clk 0:01:04.6]} 29. Qxe5
{[%clk 0:00:28.2]} 29... Bg7 {[%clk 0:01:04.5]} 30. Qg3 {[%clk 0:00:28.1]} 30...
Nc2 {[%clk 0:00:28.6]} 31. Nd1 {[%clk 0:00:23.3]} 31... Ra2 {[%clk 0:00:22.8]}
32. Nf2 {[%clk 0:00:23.1]} 32... Nd4 {[%clk 0:00:09.1]} 33. Rbd1 {[%clk
0:00:11.1]} 33... Qe8 {[%clk 0:00:01.6]} 34. Rxd4 {[%clk 0:00:10.8]} 34... Bxd4
{[%clk 0:00:02.5]} 35. Rxd4 {[%clk 0:00:11]} 35... Ra1 {[%clk 0:00:02.3]} 36.
Qd6 {[%clk 0:00:07.6]} 1-0

[Event "Early-Titled-Tuesday-Blitz-March-26-2024"]
[Site "Chess.com"]
[Date "2024.03.26"]
[Round "1"]
[White "Eagle_2019"]
[Black "esrosenberg"]
[Result "1-0"]
[WhiteElo "2864"]
[BlackElo "2477"]
[TimeControl "180+1"]
[EndTime "8:07:21 PDT"]
[Termination "Eagle_2019 won by resignation"]

1. d4 {[%clk 0:03:00.9]} 1... d5 {[%clk 0:02:59.7]} 2. c4 {[%clk 0:03:00.9]}
2... e6 {[%clk 0:02:59.6]} 3. Nf3 {[%clk 0:03:00.9]} 3... Nf6 {[%clk 0:02:58.3]}
4. Bg5 {[%clk 0:02:58.6]} 4... Be7 {[%clk 0:02:57.8]} 5. e3 {[%clk 0:02:58.3]}
5... h6 {[%clk 0:02:57.3]} 6. Bh4 {[%clk 0:02:55.7]} 6... O-O {[%clk 0:02:56.9]}
7. Nc3 {[%clk 0:02:53.4]} 7... Ne4 {[%clk 0:02:56.7]} 8. Bxe7 {[%clk 0:02:52.5]}
8... Qxe7 {[%clk 0:02:56.1]} 9. Qc2 {[%clk 0:02:49.7]} 9... Nxc3 {[%clk
0:02:53.4]} 10. Qxc3 {[%clk 0:02:50.6]} 10... c6 {[%clk 0:02:53.9]} 11. Be2
{[%clk 0:02:49.4]} 11... Nd7 {[%clk 0:02:54]} 12. O-O {[%clk 0:02:49.4]} 12...
dxc4 {[%clk 0:02:51.6]} 13. Bxc4 {[%clk 0:02:47.5]} 13... Re8 {[%clk 0:02:49.2]}
14. Rfd1 {[%clk 0:02:44.7]} 14... b6 {[%clk 0:02:46.9]} 15. b4 {[%clk
0:02:35.1]} 15... Bb7 {[%clk 0:02:46.5]} 16. a4 {[%clk 0:02:34.8]} 16... Rac8
{[%clk 0:02:36.9]} 17. Be2 {[%clk 0:02:29.3]} 17... c5 {[%clk 0:02:32.4]} 18.
dxc5 {[%clk 0:02:28.1]} 18... bxc5 {[%clk 0:02:31.4]} 19. b5 {[%clk 0:02:28.3]}
19... e5 {[%clk 0:02:21.3]} 20. a5 {[%clk 0:02:21.7]} 20... e4 {[%clk
0:02:17.9]} 21. Nd2 {[%clk 0:02:18.2]} 21... f5 {[%clk 0:02:14.1]} 22. Nc4
{[%clk 0:02:14.8]} 22... f4 {[%clk 0:01:49.9]} 23. Nd6 {[%clk 0:01:54.6]} 23...
f3 {[%clk 0:01:49.9]} 24. Bc4+ {[%clk 0:01:52.5]} 24... Kh8 {[%clk 0:01:45.5]}
25. Nf5 {[%clk 0:01:07.9]} 25... Qg5 {[%clk 0:01:44.3]} 26. Qxg7+ {[%clk
0:01:05.3]} 26... Qxg7 {[%clk 0:01:43.7]} 27. Nxg7 {[%clk 0:01:06.2]} 27... Ne5
{[%clk 0:01:43.1]} 28. Nxe8 {[%clk 0:01:05.3]} 28... Rxe8 {[%clk 0:01:30.8]} 29.
Bd5 {[%clk 0:00:59.3]} 29... Bxd5 {[%clk 0:01:29.6]} 30. Rxd5 {[%clk 0:01:00.2]}
30... c4 {[%clk 0:01:30.2]} 31. b6 {[%clk 0:00:57.6]} 31... axb6 {[%clk
0:01:29.9]} 32. a6 {[%clk 0:00:53.9]} 32... c3 {[%clk 0:01:29.3]} 33. a7 {[%clk
0:00:51]} 33... c2 {[%clk 0:01:24.4]} 34. Rxe5 {[%clk 0:00:46.8]} 34... Rc8
{[%clk 0:01:16]} 35. a8=Q {[%clk 0:00:27.9]} 35... c1=Q+ {[%clk 0:01:03.7]} 36.
Rxc1 {[%clk 0:00:27.7]} 36... Rxa8 {[%clk 0:01:04.3]} 37. Rxe4 {[%clk
0:00:26.6]} 37... fxg2 {[%clk 0:00:59.6]} 38. Kxg2 {[%clk 0:00:26.5]} 38... b5
{[%clk 0:00:59.9]} 39. Rc6 {[%clk 0:00:26]} 39... Kg7 {[%clk 0:00:59.4]} 40.
Re7+ {[%clk 0:00:25.6]} 40... Kf8 {[%clk 0:00:59.5]} 41. Rb7 {[%clk 0:00:25.6]}
41... h5 {[%clk 0:00:53.8]} 42. Rcc7 {[%clk 0:00:24.3]} 42... Kg8 {[%clk
0:00:51.2]} 43. Rxb5 {[%clk 0:00:23.1]} 43... Rf8 {[%clk 0:00:44.8]} 44. Rg5+
{[%clk 0:00:21.5]} 44... Kh8 {[%clk 0:00:45]} 45. Rgg7 {[%clk 0:00:18.1]} 45...
Re8 {[%clk 0:00:42.6]} 46. Rh7+ {[%clk 0:00:17.9]} 46... Kg8 {[%clk 0:00:42.8]}
47. Rcg7+ {[%clk 0:00:18.5]} 47... Kf8 {[%clk 0:00:43.2]} 48. Rh8+ {[%clk
0:00:19.1]} 48... Kxg7 {[%clk 0:00:43.5]} 49. Rxe8 {[%clk 0:00:20]} 49... h4
{[%clk 0:00:43.9]} 50. Kh3 {[%clk 0:00:19.9]} 50... Kf7 {[%clk 0:00:43.9]} 51.
Re4 {[%clk 0:00:20.5]} 51... Kg6 {[%clk 0:00:43.5]} 52. Rxh4 {[%clk 0:00:21.4]}
52... Kg5 {[%clk 0:00:43.8]} 53. Rf4 {[%clk 0:00:22.3]} 53... Kg6 {[%clk
0:00:44]} 54. Kg4 {[%clk 0:00:22.9]} 54... Kh6 {[%clk 0:00:44]} 55. Rf6+ {[%clk
0:00:22.3]} 55... Kh7 {[%clk 0:00:43.9]} 56. Kh5 {[%clk 0:00:22.8]} 56... Kg7
{[%clk 0:00:44.8]} 57. Kg5 {[%clk 0:00:23.3]} 57... Kh7 {[%clk 0:00:44.6]} 58.
Rf7+ {[%clk 0:00:23.7]} 58... Kg8 {[%clk 0:00:44.4]} 59. Kg6 {[%clk 0:00:24.2]}
1-0

[Event "Early-Titled-Tuesday-Blitz-March-26-2024"]
[Site "Chess.com"]
[Date "2024.03.26"]
[Round "1"]
[White "Savagelittlemole"]
[Black "Kirill_Klukin"]
[Result "0-1"]
[WhiteElo "2468"]
[BlackElo "2842"]
[TimeControl "180+1"]
[EndTime "8:07:26 PDT"]
[Termination "Kirill_Klukin won by resignation"]

1. e4 {[%clk 0:03:00.9]} 1... c5 {[%clk 0:02:59]} 2. Nf3 {[%clk 0:03:01.3]} 2...
Nc6 {[%clk 0:02:59.1]} 3. d4 {[%clk 0:03:01.6]} 3... cxd4 {[%clk 0:02:59.5]} 4.
Nxd4 {[%clk 0:03:02.5]} 4... e5 {[%clk 0:03:00.3]} 5. Nxc6 {[%clk 0:03:02.7]}
5... bxc6 {[%clk 0:03:00.5]} 6. Bd3 {[%clk 0:03:03.4]} 6... Nf6 {[%clk
0:03:00.6]} 7. O-O {[%clk 0:03:04.2]} 7... Be7 {[%clk 0:02:56.3]} 8. c4 {[%clk
0:03:03.8]} 8... O-O {[%clk 0:02:56.1]} 9. Nc3 {[%clk 0:03:04.5]} 9... d6 {[%clk
0:02:52.6]} 10. h3 {[%clk 0:03:04.5]} 10... Be6 {[%clk 0:02:52.1]} 11. Be3
{[%clk 0:03:04.5]} 11... Nd7 {[%clk 0:02:50]} 12. b4 {[%clk 0:03:03.1]} 12...
Bg5 {[%clk 0:02:46.5]} 13. Qd2 {[%clk 0:03:02.1]} 13... Bxe3 {[%clk 0:02:46.5]}
14. Qxe3 {[%clk 0:03:03]} 14... a5 {[%clk 0:02:43.9]} 15. a3 {[%clk 0:03:02]}
15... Qc7 {[%clk 0:02:43.2]} 16. Rfc1 {[%clk 0:03:00.7]} 16... Rfb8 {[%clk
0:02:42.3]} 17. b5 {[%clk 0:03:00]} 17... Nc5 {[%clk 0:02:41.7]} 18. Rab1 {[%clk
0:02:58.4]} 18... a4 {[%clk 0:02:39.5]} 19. bxc6 {[%clk 0:02:55.7]} 19... Qxc6
{[%clk 0:02:37.5]} 20. Nd5 {[%clk 0:02:54.7]} 20... Bxd5 {[%clk 0:02:32.3]} 21.
cxd5 {[%clk 0:02:52.1]} 21... Qc7 {[%clk 0:02:29.7]} 22. Bb5 {[%clk 0:02:46.1]}
22... h6 {[%clk 0:02:26]} 23. Bc6 {[%clk 0:02:44.1]} 23... Rxb1 {[%clk 0:02:26]}
24. Rxb1 {[%clk 0:02:45]} 24... Rb8 {[%clk 0:02:26.2]} 25. Rxb8+ {[%clk
0:02:33.3]} 25... Qxb8 {[%clk 0:02:26.1]} 26. Kh2 {[%clk 0:02:32.3]} 26... Qb3
{[%clk 0:02:24.1]} 27. Qe2 {[%clk 0:02:18.6]} 27... Qxa3 {[%clk 0:01:22]} 28.
Qg4 {[%clk 0:02:18.3]} 28... g6 {[%clk 0:01:13.6]} 29. Qc8+ {[%clk 0:01:45.2]}
29... Kg7 {[%clk 0:01:13.6]} 30. Qc7 {[%clk 0:01:39.8]} 30... Qc1 {[%clk
0:01:06.6]} 31. Qxd6 {[%clk 0:00:51.2]} 31... Qf4+ {[%clk 0:01:04.9]} 32. Kg1
{[%clk 0:00:43.8]} 32... Nxe4 {[%clk 0:00:54.2]} 33. Qa3 {[%clk 0:00:31.1]}
33... Qxf2+ {[%clk 0:00:53.6]} 34. Kh2 {[%clk 0:00:29.9]} 34... Qd4 {[%clk
0:00:26.4]} 35. Qxa4 {[%clk 0:00:13.6]} 35... Qxa4 {[%clk 0:00:26.4]} 36. Bxa4
{[%clk 0:00:14.1]} 36... f5 {[%clk 0:00:27.1]} 37. Bc2 {[%clk 0:00:05.2]} 37...
Nd6 {[%clk 0:00:27.2]} 38. Kg3 {[%clk 0:00:04.8]} 38... Kf6 {[%clk 0:00:27.4]}
39. Kf3 {[%clk 0:00:05.1]} 39... e4+ {[%clk 0:00:27.3]} 40. Ke3 {[%clk
0:00:05.2]} 40... Ke5 {[%clk 0:00:27.7]} 41. Bb3 {[%clk 0:00:05.2]} 41... g5
{[%clk 0:00:28.2]} 42. g3 {[%clk 0:00:05.2]} 42... f4+ {[%clk 0:00:28.6]} 43.
gxf4+ {[%clk 0:00:05.1]} 43... gxf4+ {[%clk 0:00:29.5]} 44. Kf2 {[%clk
0:00:05.3]} 44... Nf5 {[%clk 0:00:30.3]} 45. Ba2 {[%clk 0:00:01.4]} 45... Ne3
{[%clk 0:00:30.5]} 46. Ke2 {[%clk 0:00:01.9]} 46... Nxd5 {[%clk 0:00:30.7]} 47.
h4 {[%clk 0:00:02.3]} 47... Nc3+ {[%clk 0:00:30.9]} 0-1

[Event "Early-Titled-Tuesday-Blitz-March-26-2024"]
[Site "Chess.com"]
[Date "2024.03.26"]
[Round "1"]
[White "Slovineanu"]
[Black "ViIIagra"]
[Result "1-0"]
[WhiteElo "2518"]
[BlackElo "2890"]
[TimeControl "180+1"]
[EndTime "8:07:27 PDT"]
[Termination "Slovineanu won by resignation"]

1. d4 {[%clk 0:02:55.2]} 1... d6 {[%clk 0:02:46.9]} 2. e4 {[%clk 0:02:54.4]}
2... Nf6 {[%clk 0:02:46.4]} 3. Nc3 {[%clk 0:02:54.6]} 3... g6 {[%clk 0:02:46.7]}
4. Nf3 {[%clk 0:02:54.1]} 4... Bg7 {[%clk 0:02:46.7]} 5. Be3 {[%clk 0:02:54.2]}
5... c6 {[%clk 0:02:46.3]} 6. Qd2 {[%clk 0:02:53.3]} 6... Ng4 {[%clk 0:02:45.2]}
7. Bg5 {[%clk 0:02:52.8]} 7... h6 {[%clk 0:02:45.4]} 8. Bh4 {[%clk 0:02:52.8]}
8... a6 {[%clk 0:02:37.4]} 9. Bd3 {[%clk 0:02:44.6]} 9... Qb6 {[%clk 0:02:31.4]}
10. h3 {[%clk 0:02:36]} 10... Nf6 {[%clk 0:02:27]} 11. O-O-O {[%clk 0:02:24.5]}
11... g5 {[%clk 0:02:21.8]} 12. Bg3 {[%clk 0:02:24.1]} 12... Nh5 {[%clk
0:02:22.4]} 13. Bh2 {[%clk 0:02:11.3]} 13... Bxd4 {[%clk 0:02:12.7]} 14. Nxd4
{[%clk 0:02:11.3]} 14... Qxd4 {[%clk 0:02:13.6]} 15. Rhe1 {[%clk 0:02:02]} 15...
Be6 {[%clk 0:01:58.7]} 16. g4 {[%clk 0:01:50]} 16... Ng7 {[%clk 0:01:56]} 17. e5
{[%clk 0:01:49.4]} 17... d5 {[%clk 0:01:56]} 18. f4 {[%clk 0:01:22.5]} 18...
gxf4 {[%clk 0:01:49.2]} 19. Bxf4 {[%clk 0:01:22.2]} 19... Bd7 {[%clk 0:01:26]}
20. Bxh6 {[%clk 0:01:08.7]} 20... Ne6 {[%clk 0:01:22.3]} 21. g5 {[%clk
0:01:08.5]} 21... c5 {[%clk 0:01:18.5]} 22. g6 {[%clk 0:00:54.2]} 22... fxg6
{[%clk 0:01:18.3]} 23. Bxg6+ {[%clk 0:00:53.4]} 23... Kd8 {[%clk 0:01:18.7]} 24.
Nxd5 {[%clk 0:00:35.3]} 24... Qxd2+ {[%clk 0:01:14.2]} 25. Bxd2 {[%clk
0:00:34.6]} 25... Nc6 {[%clk 0:01:09.1]} 26. Bf5 {[%clk 0:00:23.2]} 26... Ncd4
{[%clk 0:00:34.3]} 27. Bg4 {[%clk 0:00:21.6]} 27... Bc6 {[%clk 0:00:27.8]} 28.
Nb6 {[%clk 0:00:21.5]} 28... Nc7 {[%clk 0:00:17.2]} 29. c3 {[%clk 0:00:18.6]}
29... Ndb5 {[%clk 0:00:13.4]} 30. Bg5+ {[%clk 0:00:15.5]} 30... Ke8 {[%clk
0:00:13.7]} 31. e6 {[%clk 0:00:14.4]} 31... Rd8 {[%clk 0:00:12.4]} 32. Rd7
{[%clk 0:00:13.8]} 32... Rh7 {[%clk 0:00:07.1]} 33. Rxd8+ {[%clk 0:00:12.9]}
33... Kxd8 {[%clk 0:00:07.3]} 34. Rf1 {[%clk 0:00:10.2]} 34... Ke8 {[%clk
0:00:07.6]} 35. h4 {[%clk 0:00:09.4]} 35... Nd5 {[%clk 0:00:07.5]} 36. Bf5
{[%clk 0:00:09.3]} 36... Rh8 {[%clk 0:00:06.9]} 37. Bg6+ {[%clk 0:00:09.4]}
37... Kd8 {[%clk 0:00:07.6]} 38. Nxd5 {[%clk 0:00:09.3]} 38... Bxd5 {[%clk
0:00:08.5]} 39. Rd1 {[%clk 0:00:09.6]} 39... Nc7 {[%clk 0:00:02.6]} 40. c4
{[%clk 0:00:09.6]} 1-0

[Event "Early-Titled-Tuesday-Blitz-March-26-2024"]
[Site "Chess.com"]
[Date "2024.03.26"]
[Round "1"]
[White "rionelG"]
[Black "lucasran"]
[Result "0-1"]
[WhiteElo "2212"]
[BlackElo "2605"]
[TimeControl "180+1"]
[EndTime "8:07:27 PDT"]
[Termination "lucasran won by resignation"]

1. e4 {[%clk 0:03:00.9]} 1... c6 {[%clk 0:02:50.8]} 2. d4 {[%clk 0:03:00.4]}
2... d5 {[%clk 0:02:48.3]} 3. Nc3 {[%clk 0:03:00.7]} 3... dxe4 {[%clk
0:02:46.2]} 4. Nxe4 {[%clk 0:03:01.3]} 4... Bf5 {[%clk 0:02:45.3]} 5. Ng3 {[%clk
0:03:01.3]} 5... Bg6 {[%clk 0:02:45.1]} 6. f4 {[%clk 0:03:01.9]} 6... e6 {[%clk
0:02:41.3]} 7. Nf3 {[%clk 0:03:02.2]} 7... Nd7 {[%clk 0:02:40.2]} 8. Bd3 {[%clk
0:03:01.8]} 8... Bxd3 {[%clk 0:02:31.3]} 9. Qxd3 {[%clk 0:03:02.7]} 9... g6
{[%clk 0:02:31.7]} 10. O-O {[%clk 0:02:58.2]} 10... Ngf6 {[%clk 0:02:30.9]} 11.
Re1 {[%clk 0:02:53.3]} 11... Be7 {[%clk 0:02:19]} 12. c3 {[%clk 0:02:26.6]}
12... O-O {[%clk 0:02:16.8]} 13. Ne5 {[%clk 0:01:38.2]} 13... c5 {[%clk
0:01:57.6]} 14. Be3 {[%clk 0:00:50.8]} 14... Nd5 {[%clk 0:01:56.9]} 15. Rad1
{[%clk 0:00:49.8]} 15... Nxe3 {[%clk 0:01:28.5]} 16. Qxe3 {[%clk 0:00:49.3]}
16... Nf6 {[%clk 0:01:04.5]} 17. Qf3 {[%clk 0:00:20.3]} 17... Qc7 {[%clk
0:01:02.8]} 18. Ng4 {[%clk 0:00:11.5]} 18... cxd4 {[%clk 0:01:00.3]} 19. cxd4
{[%clk 0:00:11.2]} 19... Rfd8 {[%clk 0:00:54.4]} 20. Nxf6+ {[%clk 0:00:09.3]}
20... Bxf6 {[%clk 0:00:55.3]} 21. Ne2 {[%clk 0:00:08.8]} 21... Qb6 {[%clk
0:00:54.9]} 22. Qc3 {[%clk 0:00:08.7]} 22... Rac8 {[%clk 0:00:54.3]} 23. Qb3
{[%clk 0:00:08.1]} 23... Qxb3 {[%clk 0:00:52.8]} 24. axb3 {[%clk 0:00:07.5]}
24... Rc2 {[%clk 0:00:53.4]} 25. Rb1 {[%clk 0:00:04.9]} 25... Rd2 {[%clk
0:00:53.4]} 26. Kf2 {[%clk 0:00:04.5]} 26... Bxd4+ {[%clk 0:00:53]} 27. Kf3
{[%clk 0:00:05.3]} 27... Bf6 {[%clk 0:00:49.2]} 28. Ng3 {[%clk 0:00:05.4]} 28...
Rxb2 {[%clk 0:00:48.1]} 29. Rxb2 {[%clk 0:00:04.4]} 29... Bxb2 {[%clk 0:00:49]}
30. Ne4 {[%clk 0:00:04.8]} 30... Rd3+ {[%clk 0:00:46.2]} 31. Ke2 {[%clk
0:00:05]} 31... Rxb3 {[%clk 0:00:45.4]} 32. Rb1 {[%clk 0:00:04.6]} 32... Rb4
{[%clk 0:00:42.9]} 33. Nd2 {[%clk 0:00:02.6]} 33... Bc3 {[%clk 0:00:42.6]} 34.
Rc1 {[%clk 0:00:02]} 34... Bxd2 {[%clk 0:00:42.5]} 35. Rc8+ {[%clk 0:00:02]}
35... Kg7 {[%clk 0:00:42.2]} 36. Kxd2 {[%clk 0:00:02.9]} 36... Rb2+ {[%clk
0:00:41.8]} 37. Ke3 {[%clk 0:00:03.8]} 37... Rxg2 {[%clk 0:00:41.5]} 38. Rc7
{[%clk 0:00:04.7]} 38... Rxh2 {[%clk 0:00:40.2]} 39. Rxb7 {[%clk 0:00:05.3]}
39... a5 {[%clk 0:00:40.4]} 40. Ra7 {[%clk 0:00:05.3]} 40... Ra2 {[%clk
0:00:40.1]} 41. Kf3 {[%clk 0:00:06.2]} 41... a4 {[%clk 0:00:38.3]} 42. Kg3
{[%clk 0:00:07.1]} 42... a3 {[%clk 0:00:38.5]} 43. Kf3 {[%clk 0:00:07.4]} 43...
Ra1 {[%clk 0:00:38.6]} 44. Kg2 {[%clk 0:00:07.5]} 44... a2 {[%clk 0:00:38.9]}
45. Ra5 {[%clk 0:00:07.6]} 45... h6 {[%clk 0:00:35.9]} 46. Kh2 {[%clk
0:00:08.2]} 46... Kf6 {[%clk 0:00:35.9]} 47. Kg2 {[%clk 0:00:08.9]} 47... g5
{[%clk 0:00:36.3]} 48. fxg5+ {[%clk 0:00:09]} 48... hxg5 {[%clk 0:00:37.2]} 49.
Kf2 {[%clk 0:00:09.2]} 49... Rh1 {[%clk 0:00:35.3]} 0-1

[Event "Early-Titled-Tuesday-Blitz-March-26-2024"]
[Site "Chess.com"]
[Date "2024.03.26"]
[Round "1"]
[White "kyuotbi"]
[Black "karinachess1"]
[Result "1-0"]
[WhiteElo "2302"]
[BlackElo "2615"]
[TimeControl "180+1"]
[EndTime "8:07:28 PDT"]
[Termination "kyuotbi won by checkmate"]

1. e4 {[%clk 0:03:00.9]} 1... e5 {[%clk 0:02:59.8]} 2. Nf3 {[%clk 0:03:00.8]}
2... Nc6 {[%clk 0:03:00.1]} 3. Bb5 {[%clk 0:03:00.7]} 3... Nge7 {[%clk
0:02:59.2]} 4. O-O {[%clk 0:02:57.8]} 4... Ng6 {[%clk 0:02:59]} 5. d4 {[%clk
0:02:53.4]} 5... exd4 {[%clk 0:02:59.9]} 6. Nxd4 {[%clk 0:02:52.6]} 6... Nxd4
{[%clk 0:03:00.8]} 7. Qxd4 {[%clk 0:02:52.5]} 7... c6 {[%clk 0:03:00.8]} 8. Bc4
{[%clk 0:02:49.5]} 8... b5 {[%clk 0:02:58.5]} 9. Bb3 {[%clk 0:02:42]} 9... Qb6
{[%clk 0:02:57.9]} 10. Qd1 {[%clk 0:02:30.4]} 10... Bc5 {[%clk 0:02:53.1]} 11.
a4 {[%clk 0:02:25.9]} 11... O-O {[%clk 0:02:46.7]} 12. Nc3 {[%clk 0:02:20.6]}
12... b4 {[%clk 0:02:44.7]} 13. a5 {[%clk 0:02:20]} 13... Qc7 {[%clk 0:02:44.4]}
14. Na4 {[%clk 0:02:07.2]} 14... Bd6 {[%clk 0:02:44.5]} 15. g3 {[%clk
0:01:58.2]} 15... Ba6 {[%clk 0:02:31.1]} 16. Re1 {[%clk 0:01:54.3]} 16... Rae8
{[%clk 0:02:30.7]} 17. c3 {[%clk 0:01:25.3]} 17... c5 {[%clk 0:02:27]} 18. cxb4
{[%clk 0:01:21.5]} 18... c4 {[%clk 0:02:27.4]} 19. Bc2 {[%clk 0:01:18.7]} 19...
Bxb4 {[%clk 0:02:27.6]} 20. Bd2 {[%clk 0:01:15.9]} 20... Qxa5 {[%clk 0:02:25.1]}
21. Nc3 {[%clk 0:01:08.8]} 21... Bxc3 {[%clk 0:01:34.4]} 22. Rxa5 {[%clk
0:01:07.4]} 22... Bxa5 {[%clk 0:01:35]} 23. Bxa5 {[%clk 0:01:07.4]} 23... Rb8
{[%clk 0:01:31.7]} 24. Bc3 {[%clk 0:01:03.3]} 24... Bb5 {[%clk 0:01:31.8]} 25.
f4 {[%clk 0:01:00.4]} 25... Ne7 {[%clk 0:01:31]} 26. Qd6 {[%clk 0:00:59.4]}
26... Rfe8 {[%clk 0:01:27.2]} 27. e5 {[%clk 0:00:57]} 27... Bc6 {[%clk
0:01:21.3]} 28. Be4 {[%clk 0:00:48.8]} 28... Rbd8 {[%clk 0:01:09.1]} 29. Qc5
{[%clk 0:00:37.4]} 29... Rc8 {[%clk 0:01:05.7]} 30. Qxa7 {[%clk 0:00:34.7]}
30... Ra8 {[%clk 0:00:53.2]} 31. Qd4 {[%clk 0:00:32.8]} 31... Ra4 {[%clk
0:00:47.9]} 32. Bxc6 {[%clk 0:00:31.2]} 32... dxc6 {[%clk 0:00:47.1]} 33. e6
{[%clk 0:00:30.3]} 33... f6 {[%clk 0:00:44.8]} 34. Qd7 {[%clk 0:00:29.4]} 34...
Raa8 {[%clk 0:00:44.9]} 35. Bb4 {[%clk 0:00:29]} 35... Nd5 {[%clk 0:00:44.9]}
36. Bc5 {[%clk 0:00:25.9]} 36... Rad8 {[%clk 0:00:40.4]} 37. Qxc6 {[%clk
0:00:24.8]} 37... Ne7 {[%clk 0:00:38.9]} 38. Bxe7 {[%clk 0:00:23.5]} 38... Rxe7
{[%clk 0:00:39.8]} 39. Qc5 {[%clk 0:00:23.6]} 39... Rde8 {[%clk 0:00:39.2]} 40.
Qxc4 {[%clk 0:00:23.8]} 40... h6 {[%clk 0:00:38.7]} 41. b4 {[%clk 0:00:23.2]}
41... Kh7 {[%clk 0:00:37.1]} 42. f5 {[%clk 0:00:21.4]} 42... Rb8 {[%clk
0:00:37]} 43. Rd1 {[%clk 0:00:20.6]} 43... Reb7 {[%clk 0:00:35.1]} 44. Rd7
{[%clk 0:00:21.2]} 44... Rxb4 {[%clk 0:00:34.3]} 45. Qc7 {[%clk 0:00:21.1]}
45... Rb1+ {[%clk 0:00:34.2]} 46. Kg2 {[%clk 0:00:21.2]} 46... R1b2+ {[%clk
0:00:34.8]} 47. Kh3 {[%clk 0:00:21.6]} 47... Rg8 {[%clk 0:00:34.4]} 48. e7
{[%clk 0:00:21.6]} 48... Re2 {[%clk 0:00:33.7]} 49. Rd8 {[%clk 0:00:21.5]} 49...
h5 {[%clk 0:00:25.1]} 50. Rxg8 {[%clk 0:00:20.4]} 50... Kxg8 {[%clk 0:00:26]}
51. Qd8+ {[%clk 0:00:21]} 51... Kf7 {[%clk 0:00:25]} 52. Qf8# {[%clk 0:00:21.6]}
1-0